[Event "Early-Titled-Tuesday-Blitz-December-26-2023"]
[Site "Chess.com"]
[Date "2023.12.26"]
[Round "10"]
[White "matagordo"]
[Black "AGW2016"]
[Result "0-1"]
[WhiteElo "2274"]
[BlackElo "2565"]
[TimeControl "180+1"]
[EndTime "9:54:08 PST"]
[Termination "AGW2016 won by checkmate"]

1. d4 {[%clk 0:03:00.9]} 1... Nf6 {[%clk 0:02:58.9]} 2. Bf4 {[%clk 0:02:59.8]}
2... g6 {[%clk 0:02:57.5]} 3. Nc3 {[%clk 0:02:59.9]} 3... d5 {[%clk 0:02:57.9]}
4. e3 {[%clk 0:03:00.5]} 4... Bg7 {[%clk 0:02:58.1]} 5. h4 {[%clk 0:03:01.2]}
5... O-O {[%clk 0:02:58.7]} 6. h5 {[%clk 0:03:01.5]} 6... c5 {[%clk 0:02:59.5]}
7. hxg6 {[%clk 0:03:01.4]} 7... hxg6 {[%clk 0:03:00.4]} 8. Nb5 {[%clk
0:02:43.8]} 8... Nc6 {[%clk 0:02:48.5]} 9. c3 {[%clk 0:02:21.1]} 9... Bf5 {[%clk
0:02:22]} 10. Qf3 {[%clk 0:02:00.4]} 10... a6 {[%clk 0:02:19.5]} 11. Na3 {[%clk
0:01:53.2]} 11... cxd4 {[%clk 0:02:18.1]} 12. exd4 {[%clk 0:01:51.1]} 12... Re8
{[%clk 0:02:16.9]} 13. Be2 {[%clk 0:01:35.3]} 13... e5 {[%clk 0:02:15.2]} 14.
dxe5 {[%clk 0:01:35.3]} 14... Nxe5 {[%clk 0:02:16.1]} 15. Bxe5 {[%clk
0:01:30.7]} 15... Rxe5 {[%clk 0:02:17]} 16. Qg3 {[%clk 0:01:09.4]} 16... Qe7
{[%clk 0:02:14.4]} 17. O-O-O {[%clk 0:00:59.9]} 17... Ne4 {[%clk 0:01:57.5]} 18.
Qh4 {[%clk 0:00:46.7]} 18... Qc5 {[%clk 0:01:42.6]} 19. Nb1 {[%clk 0:00:22.8]}
19... Nxf2 {[%clk 0:01:24.8]} 20. Nf3 {[%clk 0:00:16]} 20... Nxd1 {[%clk
0:01:17.7]} 21. Rxd1 {[%clk 0:00:14.8]} 21... Rxe2 {[%clk 0:01:17.2]} 22. Ng5
{[%clk 0:00:12]} 22... Rc2# {[%clk 0:01:17]} 0-1

[Event "Early-Titled-Tuesday-Blitz-December-26-2023"]
[Site "Chess.com"]
[Date "2023.12.26"]
[Round "10"]
[White "mightysmasher"]
[Black "a-z30"]
[Result "1-0"]
[WhiteElo "2591"]
[BlackElo "2484"]
[TimeControl "180+1"]
[EndTime "9:54:16 PST"]
[Termination "mightysmasher won by resignation"]

1. e4 {[%clk 0:03:00.9]} 1... d6 {[%clk 0:03:00.9]} 2. d4 {[%clk 0:02:59.9]}
2... Nf6 {[%clk 0:03:01.5]} 3. Nc3 {[%clk 0:02:58]} 3... g6 {[%clk 0:03:02.1]}
4. Nf3 {[%clk 0:02:58.1]} 4... Bg7 {[%clk 0:03:02.6]} 5. Bc4 {[%clk 0:02:58]}
5... O-O {[%clk 0:03:03.2]} 6. O-O {[%clk 0:02:58.1]} 6... Nxe4 {[%clk
0:03:03.2]} 7. Nxe4 {[%clk 0:02:56.8]} 7... d5 {[%clk 0:03:03]} 8. Bxd5 {[%clk
0:02:56.8]} 8... Qxd5 {[%clk 0:03:01.2]} 9. Nc3 {[%clk 0:02:56.9]} 9... Qh5
{[%clk 0:02:42.3]} 10. Be3 {[%clk 0:02:53.4]} 10... c6 {[%clk 0:02:38.5]} 11.
Re1 {[%clk 0:02:51.9]} 11... Bg4 {[%clk 0:02:24.8]} 12. Qe2 {[%clk 0:02:45.6]}
12... Nd7 {[%clk 0:02:23.6]} 13. h3 {[%clk 0:02:44.5]} 13... Bxf3 {[%clk
0:02:23]} 14. Qxf3 {[%clk 0:02:44.5]} 14... Qxf3 {[%clk 0:02:23]} 15. gxf3
{[%clk 0:02:45.4]} 15... e5 {[%clk 0:02:20.8]} 16. Rad1 {[%clk 0:02:43.8]} 16...
Rfe8 {[%clk 0:02:08.4]} 17. d5 {[%clk 0:02:41.9]} 17... Nb6 {[%clk 0:01:36.9]}
18. dxc6 {[%clk 0:02:40.4]} 18... bxc6 {[%clk 0:01:36.2]} 19. b3 {[%clk
0:02:40.3]} 19... Rad8 {[%clk 0:01:28.1]} 20. Ne4 {[%clk 0:02:35.9]} 20... Nd5
{[%clk 0:01:20.8]} 21. Bd2 {[%clk 0:02:19.3]} 21... f5 {[%clk 0:01:15.8]} 22.
Nc5 {[%clk 0:02:18.6]} 22... Kf7 {[%clk 0:01:15.5]} 23. c4 {[%clk 0:02:06.7]}
23... Nb6 {[%clk 0:01:07]} 24. a4 {[%clk 0:02:03.7]} 24... Bf8 {[%clk
0:01:05.2]} 25. Nb7 {[%clk 0:01:35.9]} 25... Rxd2 {[%clk 0:00:24]} 26. Rxd2
{[%clk 0:01:31]} 26... Bb4 {[%clk 0:00:23.8]} 27. Nd6+ {[%clk 0:01:30]} 27...
Ke7 {[%clk 0:00:16.4]} 28. Rxe5+ {[%clk 0:01:26.2]} 1-0

[Event "Early-Titled-Tuesday-Blitz-December-26-2023"]
[Site "Chess.com"]
[Date "2023.12.26"]
[Round "10"]
[White "zverr1"]
[Black "wqws"]
[Result "1-0"]
[WhiteElo "2509"]
[BlackElo "2706"]
[TimeControl "180+1"]
[EndTime "9:54:21 PST"]
[Termination "zverr1 won by resignation"]

1. e4 {[%clk 0:03:00.9]} 1... e5 {[%clk 0:02:57]} 2. Nf3 {[%clk 0:03:00.4]} 2...
Nc6 {[%clk 0:02:54.3]} 3. Bc4 {[%clk 0:03:00.1]} 3... Nf6 {[%clk 0:02:53.3]} 4.
Ng5 {[%clk 0:03:00.2]} 4... d5 {[%clk 0:02:52.8]} 5. exd5 {[%clk 0:03:01.1]}
5... Na5 {[%clk 0:02:49.9]} 6. Bb5+ {[%clk 0:03:00.6]} 6... c6 {[%clk
0:02:50.2]} 7. dxc6 {[%clk 0:03:01.5]} 7... bxc6 {[%clk 0:02:51.1]} 8. Be2
{[%clk 0:03:02.1]} 8... h6 {[%clk 0:02:51]} 9. Nh3 {[%clk 0:03:02.3]} 9... g5
{[%clk 0:02:47.7]} 10. d3 {[%clk 0:02:59.8]} 10... g4 {[%clk 0:02:47.5]} 11. Ng1
{[%clk 0:02:58.3]} 11... Qd5 {[%clk 0:02:45.7]} 12. Kf1 {[%clk 0:02:47.7]} 12...
c5 {[%clk 0:02:38.8]} 13. Nc3 {[%clk 0:02:27.7]} 13... Qd8 {[%clk 0:02:38.1]}
14. h3 {[%clk 0:02:22]} 14... gxh3 {[%clk 0:02:32.9]} 15. Nxh3 {[%clk
0:02:21.9]} 15... Nc6 {[%clk 0:02:32.5]} 16. Bf3 {[%clk 0:02:17.6]} 16... Bd7
{[%clk 0:02:32.2]} 17. Be3 {[%clk 0:02:01.1]} 17... Rc8 {[%clk 0:02:30.1]} 18.
Ne2 {[%clk 0:01:51.7]} 18... Nd4 {[%clk 0:02:27]} 19. Bxd4 {[%clk 0:01:32.2]}
19... cxd4 {[%clk 0:02:27.9]} 20. c3 {[%clk 0:01:28.9]} 20... Qb6 {[%clk
0:02:19.4]} 21. cxd4 {[%clk 0:01:21.9]} 21... exd4 {[%clk 0:02:17]} 22. Rc1
{[%clk 0:01:11.4]} 22... Rxc1 {[%clk 0:02:05.1]} 23. Qxc1 {[%clk 0:01:12.3]}
23... Bd6 {[%clk 0:02:01.9]} 24. Ng5 {[%clk 0:01:00.9]} 24... Qa5 {[%clk
0:01:56.2]} 25. Ne4 {[%clk 0:00:49.9]} 25... Nxe4 {[%clk 0:01:56.1]} 26. Bxe4
{[%clk 0:00:50.8]} 26... Qxa2 {[%clk 0:01:55.6]} 27. g3 {[%clk 0:00:42.4]} 27...
h5 {[%clk 0:01:54.3]} 28. Nxd4 {[%clk 0:00:33.1]} 28... Qa4 {[%clk 0:01:36.2]}
29. Qe3 {[%clk 0:00:22.4]} 29... Bc5 {[%clk 0:01:30]} 30. Bc6+ {[%clk
0:00:20.4]} 30... Kd8 {[%clk 0:01:29.2]} 31. Bxa4 {[%clk 0:00:20.5]} 31... Bxa4
{[%clk 0:01:29.2]} 32. Qg5+ {[%clk 0:00:20.3]} 1-0

[Event "Early-Titled-Tuesday-Blitz-December-26-2023"]
[Site "Chess.com"]
[Date "2023.12.26"]
[Round "10"]
[White "Alexchess1984"]
[Black "DvaHrasta"]
[Result "1-0"]
[WhiteElo "2713"]
[BlackElo "2484"]
[TimeControl "180+1"]
[EndTime "9:54:28 PST"]
[Termination "Alexchess1984 won on time"]

1. e4 {[%clk 0:03:00.9]} 1... c6 {[%clk 0:02:59.5]} 2. d4 {[%clk 0:03:00.7]}
2... d5 {[%clk 0:02:59.6]} 3. e5 {[%clk 0:03:01.4]} 3... c5 {[%clk 0:03:00]} 4.
Nf3 {[%clk 0:02:59.8]} 4... cxd4 {[%clk 0:02:58.6]} 5. Qxd4 {[%clk 0:03:00.7]}
5... Nc6 {[%clk 0:02:57.9]} 6. Qf4 {[%clk 0:03:01.1]} 6... h6 {[%clk 0:02:50.9]}
7. h4 {[%clk 0:02:59.4]} 7... g6 {[%clk 0:02:48.7]} 8. Bd3 {[%clk 0:02:58.4]}
8... Bg7 {[%clk 0:02:47.2]} 9. O-O {[%clk 0:02:56.8]} 9... Be6 {[%clk
0:02:26.5]} 10. Nc3 {[%clk 0:02:52.4]} 10... a6 {[%clk 0:02:25]} 11. Ne2 {[%clk
0:02:51.4]} 11... Qc7 {[%clk 0:02:22.5]} 12. Ned4 {[%clk 0:02:46.9]} 12... Nxd4
{[%clk 0:02:07.8]} 13. Qxd4 {[%clk 0:02:29.6]} 13... O-O-O {[%clk 0:01:48.8]}
14. Be3 {[%clk 0:02:13.5]} 14... f6 {[%clk 0:01:35.5]} 15. Bf4 {[%clk
0:02:08.8]} 15... f5 {[%clk 0:01:23.7]} 16. c3 {[%clk 0:01:43.4]} 16... Bf7
{[%clk 0:01:19]} 17. e6 {[%clk 0:01:21.8]} 17... Bxd4 {[%clk 0:01:14]} 18. Bxc7
{[%clk 0:01:21.9]} 18... Bxf2+ {[%clk 0:00:48.7]} 19. Rxf2 {[%clk 0:01:20.4]}
19... Kxc7 {[%clk 0:00:48.6]} 20. exf7 {[%clk 0:01:20.4]} 20... Nf6 {[%clk
0:00:46.4]} 21. Ne5 {[%clk 0:01:20.9]} 21... Rhf8 {[%clk 0:00:18.1]} 22. Nxg6
{[%clk 0:01:18.4]} 22... Rxf7 {[%clk 0:00:16.1]} 23. Rxf5 {[%clk 0:01:18.6]}
23... e6 {[%clk 0:00:06.7]} 24. Rf3 {[%clk 0:01:14.6]} 1-0

[Event "Early-Titled-Tuesday-Blitz-December-26-2023"]
[Site "Chess.com"]
[Date "2023.12.26"]
[Round "10"]
[White "egnfanclub"]
[Black "campochess"]
[Result "1-0"]
[WhiteElo "2344"]
[BlackElo "2184"]
[TimeControl "180+1"]
[EndTime "9:54:30 PST"]
[Termination "egnfanclub won on time"]

1. e4 {[%clk 0:03:00.9]} 1... c5 {[%clk 0:02:56]} 2. Nc3 {[%clk 0:03:00.5]} 2...
Nc6 {[%clk 0:02:55.9]} 3. f4 {[%clk 0:03:01.2]} 3... e6 {[%clk 0:02:55.4]} 4.
Nf3 {[%clk 0:03:02]} 4... a6 {[%clk 0:02:55]} 5. g3 {[%clk 0:03:00.6]} 5... Nf6
{[%clk 0:02:54.9]} 6. Bg2 {[%clk 0:03:01.2]} 6... d5 {[%clk 0:02:55.1]} 7. e5
{[%clk 0:03:01.5]} 7... Ng4 {[%clk 0:02:54.3]} 8. d3 {[%clk 0:03:00.3]} 8... Be7
{[%clk 0:02:53.5]} 9. Qe2 {[%clk 0:02:53.5]} 9... h5 {[%clk 0:02:52]} 10. O-O
{[%clk 0:02:52.3]} 10... O-O {[%clk 0:02:50.7]} 11. h3 {[%clk 0:02:52.6]} 11...
Nh6 {[%clk 0:02:49.8]} 12. Ng5 {[%clk 0:02:49.7]} 12... g6 {[%clk 0:02:49.3]}
13. Qf2 {[%clk 0:02:43.5]} 13... Nf5 {[%clk 0:02:45]} 14. g4 {[%clk 0:02:37.1]}
14... hxg4 {[%clk 0:02:43.8]} 15. hxg4 {[%clk 0:02:38]} 15... Bxg5 {[%clk
0:02:43.5]} 16. fxg5 {[%clk 0:02:10]} 16... Nfd4 {[%clk 0:02:40.8]} 17. Nd1
{[%clk 0:02:08.6]} 17... Nxe5 {[%clk 0:02:37.5]} 18. c3 {[%clk 0:02:08.5]} 18...
Ndc6 {[%clk 0:02:28.9]} 19. Qg3 {[%clk 0:01:59.7]} 19... c4 {[%clk 0:02:23.5]}
20. d4 {[%clk 0:01:54]} 20... Nd3 {[%clk 0:02:22.7]} 21. Bf4 {[%clk 0:01:53.6]}
21... Nxf4 {[%clk 0:02:19.6]} 22. Qxf4 {[%clk 0:01:53.8]} 22... Bd7 {[%clk
0:02:15.4]} 23. Ne3 {[%clk 0:01:41.1]} 23... Qb8 {[%clk 0:02:10.7]} 24. Qf2
{[%clk 0:01:37.2]} 24... Qd8 {[%clk 0:02:08]} 25. Qh4 {[%clk 0:01:36.5]} 25...
b5 {[%clk 0:01:47.5]} 26. Bxd5 {[%clk 0:01:30.4]} 26... Rc8 {[%clk 0:01:38.3]}
27. Rf2 {[%clk 0:01:26.3]} 27... Ne7 {[%clk 0:01:36.2]} 28. Rh2 {[%clk
0:01:22.5]} 1-0

[Event "Early-Titled-Tuesday-Blitz-December-26-2023"]
[Site "Chess.com"]
[Date "2023.12.26"]
[Round "10"]
[White "NovozhilovSemen"]
[Black "anasta10"]
[Result "0-1"]
[WhiteElo "2765"]
[BlackElo "2629"]
[TimeControl "180+1"]
[EndTime "9:54:46 PST"]
[Termination "anasta10 won by resignation"]

1. d4 {[%clk 0:03:00.9]} 1... g6 {[%clk 0:03:00]} 2. e4 {[%clk 0:03:00.9]} 2...
Bg7 {[%clk 0:03:00.2]} 3. Nc3 {[%clk 0:03:01.2]} 3... a6 {[%clk 0:03:00.7]} 4.
Nf3 {[%clk 0:03:01.2]} 4... b5 {[%clk 0:03:00.6]} 5. a3 {[%clk 0:03:01.1]} 5...
Bb7 {[%clk 0:03:01]} 6. Be3 {[%clk 0:03:01.3]} 6... d6 {[%clk 0:03:01.4]} 7. Qd2
{[%clk 0:03:01.2]} 7... Nf6 {[%clk 0:03:01.8]} 8. Bd3 {[%clk 0:03:01.5]} 8...
Nbd7 {[%clk 0:03:01.8]} 9. b4 {[%clk 0:03:01.5]} 9... Nb6 {[%clk 0:03:01.8]} 10.
Qe2 {[%clk 0:02:59.8]} 10... O-O {[%clk 0:03:00.1]} 11. O-O {[%clk 0:02:59.6]}
11... Re8 {[%clk 0:02:55.9]} 12. Nd2 {[%clk 0:02:59.4]} 12... e5 {[%clk
0:02:53.6]} 13. d5 {[%clk 0:02:58.7]} 13... Nh5 {[%clk 0:02:48.9]} 14. g3 {[%clk
0:02:56]} 14... Rf8 {[%clk 0:02:46.7]} 15. a4 {[%clk 0:02:54.5]} 15... bxa4
{[%clk 0:02:43.1]} 16. Nxa4 {[%clk 0:02:54.4]} 16... Nxa4 {[%clk 0:02:42.6]} 17.
Rxa4 {[%clk 0:02:55.3]} 17... Qd7 {[%clk 0:02:32.2]} 18. Rfa1 {[%clk 0:02:47]}
18... Rab8 {[%clk 0:02:11.5]} 19. c3 {[%clk 0:02:40.8]} 19... Nf6 {[%clk
0:02:06.2]} 20. f3 {[%clk 0:02:36.3]} 20... Nh5 {[%clk 0:02:00.2]} 21. Bxa6
{[%clk 0:02:19.2]} 21... Bxa6 {[%clk 0:01:55.8]} 22. Rxa6 {[%clk 0:02:20.1]}
22... f5 {[%clk 0:01:56.1]} 23. Bf2 {[%clk 0:02:19.5]} 23... Nf6 {[%clk
0:01:51.9]} 24. Rc6 {[%clk 0:02:14.1]} 24... Rf7 {[%clk 0:01:44.1]} 25. Ra7
{[%clk 0:02:11.1]} 25... Rc8 {[%clk 0:01:37.4]} 26. b5 {[%clk 0:02:10.1]} 26...
fxe4 {[%clk 0:01:34.5]} 27. fxe4 {[%clk 0:02:04.1]} 27... Qh3 {[%clk 0:01:20.6]}
28. b6 {[%clk 0:01:31.6]} 28... Ng4 {[%clk 0:01:07.1]} 29. Be3 {[%clk
0:01:30.2]} 29... Nxe3 {[%clk 0:01:04.4]} 30. Qxe3 {[%clk 0:01:18.8]} 30... Bh6
{[%clk 0:01:04.4]} 31. Qe2 {[%clk 0:01:08]} 31... Bxd2 {[%clk 0:01:03.7]} 32.
Ra1 {[%clk 0:01:01]} 32... Bg5 {[%clk 0:00:47.6]} 33. b7 {[%clk 0:00:58.4]}
33... Rb8 {[%clk 0:00:46.9]} 0-1

[Event "Early-Titled-Tuesday-Blitz-December-26-2023"]
[Site "Chess.com"]
[Date "2023.12.26"]
[Round "10"]
[White "Angry_Twin"]
[Black "Kirill_Klukin"]
[Result "1-0"]
[WhiteElo "2949"]
[BlackElo "2825"]
[TimeControl "180+1"]
[EndTime "9:54:47 PST"]
[Termination "Angry_Twin won by resignation"]

1. e4 {[%clk 0:03:00.9]} 1... c5 {[%clk 0:02:59.9]} 2. Nf3 {[%clk 0:03:01.4]}
2... g6 {[%clk 0:03:00.5]} 3. d4 {[%clk 0:02:58]} 3... cxd4 {[%clk 0:03:01.4]}
4. Nxd4 {[%clk 0:02:58.9]} 4... Bg7 {[%clk 0:03:01.9]} 5. c4 {[%clk 0:02:59.5]}
5... Nc6 {[%clk 0:03:02.4]} 6. Be3 {[%clk 0:03:00]} 6... Nf6 {[%clk 0:03:03]} 7.
Nc3 {[%clk 0:03:00.7]} 7... O-O {[%clk 0:03:03.7]} 8. Be2 {[%clk 0:03:01.3]}
8... d6 {[%clk 0:03:04.3]} 9. O-O {[%clk 0:03:01.6]} 9... Bd7 {[%clk 0:03:05.1]}
10. f3 {[%clk 0:03:00.8]} 10... Nxd4 {[%clk 0:03:04.2]} 11. Bxd4 {[%clk
0:03:01.7]} 11... a5 {[%clk 0:03:04.9]} 12. b3 {[%clk 0:02:57.5]} 12... Bc6
{[%clk 0:03:04.9]} 13. Qd2 {[%clk 0:02:58]} 13... Nd7 {[%clk 0:03:05.2]} 14. Be3
{[%clk 0:02:58.4]} 14... Nc5 {[%clk 0:03:04.3]} 15. Rac1 {[%clk 0:02:57]} 15...
e6 {[%clk 0:03:02.5]} 16. Nb5 {[%clk 0:02:37.5]} 16... Be5 {[%clk 0:02:56.2]}
17. Bg5 {[%clk 0:02:34.2]} 17... Qb6 {[%clk 0:02:22.5]} 18. Kh1 {[%clk
0:02:34.3]} 18... f5 {[%clk 0:02:09.6]} 19. exf5 {[%clk 0:02:32.2]} 19... Rxf5
{[%clk 0:02:09.1]} 20. Be3 {[%clk 0:02:27.4]} 20... Qd8 {[%clk 0:01:51.8]} 21.
Nd4 {[%clk 0:02:10.5]} 21... Qh4 {[%clk 0:01:12.3]} 22. f4 {[%clk 0:02:06.9]}
22... Ne4 {[%clk 0:00:37.2]} 23. Qe1 {[%clk 0:02:06]} 23... Qxe1 {[%clk
0:00:34]} 24. Rcxe1 {[%clk 0:02:04.1]} 24... Bxd4 {[%clk 0:00:33.5]} 25. Bxd4
{[%clk 0:02:05]} 25... Raf8 {[%clk 0:00:33.4]} 26. Be3 {[%clk 0:02:02.7]} 26...
R5f7 {[%clk 0:00:24.6]} 27. Kg1 {[%clk 0:01:57.2]} 27... Re8 {[%clk 0:00:20.2]}
28. Bd4 {[%clk 0:01:53]} 28... Nd2 {[%clk 0:00:10.2]} 29. Rf2 {[%clk 0:01:53.2]}
29... Ne4 {[%clk 0:00:10.7]} 30. Rf3 {[%clk 0:01:53.9]} 30... e5 {[%clk
0:00:08.5]} 31. fxe5 {[%clk 0:01:52.9]} 31... dxe5 {[%clk 0:00:09.2]} 32. Bb6
{[%clk 0:01:49.3]} 32... a4 {[%clk 0:00:07]} 33. Re3 {[%clk 0:01:38]} 33... axb3
{[%clk 0:00:06.6]} 34. axb3 {[%clk 0:01:38.9]} 34... Nf6 {[%clk 0:00:05.1]} 35.
Bd1 {[%clk 0:01:34.5]} 35... e4 {[%clk 0:00:01.8]} 36. Bd4 {[%clk 0:01:34.5]}
36... Ref8 {[%clk 0:00:01.9]} 37. h3 {[%clk 0:01:34]} 37... Nh5 {[%clk
0:00:01.7]} 38. Bxh5 {[%clk 0:01:32.8]} 38... gxh5 {[%clk 0:00:01.8]} 39. Rg3+
{[%clk 0:01:33.4]} 1-0

[Event "Early-Titled-Tuesday-Blitz-December-26-2023"]
[Site "Chess.com"]
[Date "2023.12.26"]
[Round "10"]
[White "Shahdad2007"]
[Black "biostatistician"]
[Result "1-0"]
[WhiteElo "2400"]
[BlackElo "2610"]
[TimeControl "180+1"]
[EndTime "9:54:50 PST"]
[Termination "Shahdad2007 won by resignation"]

1. e4 {[%clk 0:03:00.9]} 1... e5 {[%clk 0:03:00]} 2. Nf3 {[%clk 0:03:01]} 2...
Nc6 {[%clk 0:03:00.3]} 3. Nc3 {[%clk 0:03:00.9]} 3... Nf6 {[%clk 0:03:00.3]} 4.
d4 {[%clk 0:03:01.4]} 4... exd4 {[%clk 0:03:00.3]} 5. Nxd4 {[%clk 0:03:02.3]}
5... Bb4 {[%clk 0:03:00.5]} 6. Nxc6 {[%clk 0:03:02.5]} 6... bxc6 {[%clk
0:03:00.5]} 7. Bd3 {[%clk 0:03:03.1]} 7... O-O {[%clk 0:03:00]} 8. O-O {[%clk
0:03:02.7]} 8... d5 {[%clk 0:03:00.3]} 9. exd5 {[%clk 0:03:03.2]} 9... cxd5
{[%clk 0:03:01.2]} 10. h3 {[%clk 0:03:03.2]} 10... h6 {[%clk 0:03:00.6]} 11. Qf3
{[%clk 0:03:03.1]} 11... c6 {[%clk 0:02:59.7]} 12. Bf4 {[%clk 0:03:03]} 12...
Re8 {[%clk 0:02:53.3]} 13. Rad1 {[%clk 0:02:55.6]} 13... a5 {[%clk 0:02:44.6]}
14. Ne2 {[%clk 0:02:55.5]} 14... Ba6 {[%clk 0:02:41.1]} 15. Bxa6 {[%clk
0:02:51.1]} 15... Rxa6 {[%clk 0:02:42]} 16. c4 {[%clk 0:02:51]} 16... Qe7 {[%clk
0:02:23]} 17. Nd4 {[%clk 0:02:41.9]} 17... Qe4 {[%clk 0:02:15.2]} 18. cxd5
{[%clk 0:02:35.8]} 18... cxd5 {[%clk 0:02:13.6]} 19. Rd3 {[%clk 0:02:04.6]}
19... Qxf3 {[%clk 0:02:01.2]} 20. Nxf3 {[%clk 0:02:04.1]} 20... Re2 {[%clk
0:01:51.6]} 21. Be5 {[%clk 0:01:56.5]} 21... Nd7 {[%clk 0:01:28.1]} 22. Bd4
{[%clk 0:01:23.7]} 22... Rae6 {[%clk 0:01:12]} 23. a3 {[%clk 0:01:14.8]} 23...
Bd6 {[%clk 0:01:09.8]} 24. Bc3 {[%clk 0:01:12.8]} 24... Nb6 {[%clk 0:00:44.3]}
25. Nd4 {[%clk 0:01:10.2]} 25... Nc4 {[%clk 0:00:32.5]} 26. Nxe2 {[%clk
0:01:03.4]} 26... Rxe2 {[%clk 0:00:32.2]} 27. Rxd5 {[%clk 0:01:03.9]} 27... Be7
{[%clk 0:00:21.7]} 28. Re1 {[%clk 0:01:00.3]} 28... Rxe1+ {[%clk 0:00:20.4]} 29.
Bxe1 {[%clk 0:01:01.2]} 29... a4 {[%clk 0:00:18.7]} 30. Bc3 {[%clk 0:00:58.2]}
1-0

[Event "Early-Titled-Tuesday-Blitz-December-26-2023"]
[Site "Chess.com"]
[Date "2023.12.26"]
[Round "10"]
[White "NelsonLinda"]
[Black "Matic_Nareks"]
[Result "1-0"]
[WhiteElo "2609"]
[BlackElo "2489"]
[TimeControl "180+1"]
[EndTime "9:54:54 PST"]
[Termination "NelsonLinda won by checkmate"]

1. b3 {[%clk 0:01:53.9]} 1... e6 {[%clk 0:02:55.6]} 2. Bb2 {[%clk 0:01:54.8]}
2... d6 {[%clk 0:02:56.5]} 3. e3 {[%clk 0:01:55.1]} 3... Nf6 {[%clk 0:02:55.1]}
4. Nf3 {[%clk 0:01:55.7]} 4... g6 {[%clk 0:02:54.9]} 5. Be2 {[%clk 0:01:56.6]}
5... Bg7 {[%clk 0:02:55.4]} 6. c4 {[%clk 0:01:56.9]} 6... O-O {[%clk 0:02:54.2]}
7. O-O {[%clk 0:01:57.6]} 7... b6 {[%clk 0:02:53.3]} 8. d4 {[%clk 0:01:50.5]}
8... Bb7 {[%clk 0:02:53.2]} 9. Nbd2 {[%clk 0:01:51.4]} 9... Nbd7 {[%clk
0:02:51.6]} 10. Rc1 {[%clk 0:01:52]} 10... c5 {[%clk 0:02:50.5]} 11. Nb1 {[%clk
0:01:50.5]} 11... Rc8 {[%clk 0:02:49.3]} 12. Nc3 {[%clk 0:01:51]} 12... a6
{[%clk 0:02:47.2]} 13. Qc2 {[%clk 0:01:51.1]} 13... Qc7 {[%clk 0:02:47.2]} 14.
Rfd1 {[%clk 0:01:51.3]} 14... Qb8 {[%clk 0:02:47.4]} 15. Qb1 {[%clk 0:01:51.6]}
15... Qa8 {[%clk 0:02:46.7]} 16. Qa1 {[%clk 0:01:51.4]} 16... Rfd8 {[%clk
0:02:42.9]} 17. Na4 {[%clk 0:01:51.6]} 17... Bc6 {[%clk 0:02:35.3]} 18. dxc5
{[%clk 0:01:51.7]} 18... Bxa4 {[%clk 0:02:35.1]} 19. bxa4 {[%clk 0:01:51]} 19...
dxc5 {[%clk 0:02:26.4]} 20. Rxd7 {[%clk 0:01:49.6]} 20... Rxd7 {[%clk
0:02:25.3]} 21. Bxf6 {[%clk 0:01:49.9]} 21... Bxf6 {[%clk 0:02:24.9]} 22. Qxf6
{[%clk 0:01:50.4]} 22... Qa7 {[%clk 0:02:01.9]} 23. h4 {[%clk 0:01:49.6]} 23...
Qc7 {[%clk 0:01:57.5]} 24. h5 {[%clk 0:01:45]} 24... Qd8 {[%clk 0:01:57.2]} 25.
Qf4 {[%clk 0:01:41.5]} 25... Qc7 {[%clk 0:01:51.8]} 26. Ne5 {[%clk 0:01:25.3]}
26... Rd2 {[%clk 0:01:51.5]} 27. Bf3 {[%clk 0:01:25.5]} 27... Qe7 {[%clk
0:01:49.2]} 28. Ng4 {[%clk 0:01:19]} 28... Rcd8 {[%clk 0:01:45.6]} 29. Qe5
{[%clk 0:01:17.2]} 29... Qh4 {[%clk 0:01:30.2]} 30. h6 {[%clk 0:01:06.6]} 30...
Kf8 {[%clk 0:01:27.8]} 31. g3 {[%clk 0:00:54.7]} 31... Qh5 {[%clk 0:01:23]} 32.
Qg7+ {[%clk 0:00:41]} 32... Ke7 {[%clk 0:01:22.1]} 33. Qf6+ {[%clk 0:00:41.4]}
33... Kf8 {[%clk 0:01:16]} 34. Ne5 {[%clk 0:00:33.3]} 34... Qf5 {[%clk
0:01:14.8]} 35. Qg7+ {[%clk 0:00:09.7]} 35... Ke7 {[%clk 0:01:14.3]} 36. Nc6+
{[%clk 0:00:10.4]} 36... Ke8 {[%clk 0:01:12.5]} 37. Qg8+ {[%clk 0:00:09.1]}
37... Kd7 {[%clk 0:01:12.3]} 38. Qxd8# {[%clk 0:00:09.8]} 1-0